Workbook

Sheet Summary
A1: BILL NO | C1: BILL DESCRIPTION | D1: PAGE NO | F1: AMOUNT
C3: SUMMARY SECTION 1
A6: 1 | C6: Waterproofing | F6: =Waterproofing!G468 -> 0
C20: Grand Total carried to form of offer | F20: =SUM(F6:F6) -> 0

Sheet Waterproofing
A2: ITEM NO | B2: PAY REF | C2: DESCRIPTION | D2: UNIT | E2: QTY. | F2: RATE | G2: AMOUNT
C4: SECTION NO. 2
C5: BILL NO. 6
C7: Plant and Equipment
C9: Scaffolding
C11: Access to works, for working at height inclusive of rigging, scaffolding or any means to accordance with all applicable regulations and safety standards (this item will be priced with each Work Package) | D11: Days | E11: 5
C13: CALL OUT
C15: Call out fee for supervisor/Artisan to attend to site inspections | D15: No | E15: 50
C17: WATERPROOFING
C19: Standard Preambles
C21: The "Construction Works: Specifications: General Specification (PW371-A) Edition 2.0" and "Construction Works: Specifications: General Specification (PW371-B) Edition 2.0" obtainable on the Public Works Website: http://www.publicworks.gov.za/ under “Forms & Documents; Consultant’s Guidelines”; Item 2.2.1 and 2.2.2 or from the Departmental Project Manager/Leader should be read in support and extend the abbreviated bills of quantities descriptions by inter alia referring to SANS construction standards Users are to ensure that the abbreviated descriptions when read in conjunction with the applicable measuring system, represents the full description by extending the abbreviated bills of quantities descriptions and/or by inserting appropriate preambles or specifications The Standard Preambles and the Notes in the various trade bills are to apply equally to this section
C23: Waterproofing
C25: Waterproofing of roofs, basements, etc shall be laid under a ten year guarantee. Waterproofing to roofs shall be laid to even falls to outlets etc with necessary ridges, hips and valleys. Descriptions of sheet or membrane waterproofing shall be deemed to include additional labour to turn-ups and turn-downs
C27: DAMPPROOFING OF WALLS AND FLOORS
C29: One layer 375 micron embossed polyethylene dampproof course (SANS 952-1985 type B)
A31: 1 | C31: In walls | D31: m² | E31: 10
C33: Ditto 0 - 25 | D33: m² | E33: 1
C35: One layer 250 micron green polyethylene waterproof sheeting (SANS 952-1985 type C) sealed at laps with PVC self-adhesive tape
A37: =A31+1 -> 2 | C37: Under surface beds | D37: m² | E37: 50
C39: Ditto 0 - 50 | D39: m² | E39: 1
A41: =A37+1 -> 3 | C41: Vertically between walls | D41: m² | E41: 50
C43: Ditto 0 - 50 | D43: m² | E43: 1
C45: One layer 375 micron orange polyethylene waterproof sheeting (SANS 952-1985 type A) sealed at laps with PVC self-adhesive tape
A47: =A41+1 -> 4 | C47: Under surface beds | D47: m² | E47: 50
C49: Ditto 0 - 50 | D49: m² | E49: 1
A51: =A47+1 -> 5 | C51: Vertically between walls | D51: m² | E51: 50
C53: Ditto 0 - 50 | D53: m² | E53: 1
C55: One layer 500 micron orange polyethylene waterproof sheeting (SANS 952-1985 type A) sealed at laps with PVC self-adhesive tape
A57: =A51+1 -> 6 | C57: Vertically between walls | D57: m² | E57: 50
C59: Ditto 0 - 50 | D59: m² | E59: 1
C61: Two coats "Brixeal" or similar approved, bitumen emulsion waterproof coating
A63: =A57+1 -> 7 | C63: On concrete walls and columns in foundations | D63: m² | E63: 20
C65: Ditto 0 - 50 | D65: m² | E65: 1
A67: =A63+1 -> 8 | C67: On concrete walls, columns and beams | D67: m² | E67: 20
C69: Ditto 0 - 50 | D69: m² | E69: 1
A71: =A67+1 -> 9 | C71: On fair faced brick walls | D71: m² | E71: 20
C73: Ditto 0 - 50 | D73: m² | E73: 1
A75: =A71+1 -> 10 | C75: On bagged brick walls | D75: m² | E75: 20
C77: Ditto 0 - 50 | D77: m² | E77: 1
C79: Two coats "ABE dura.proof hydrokote" or similar approved flexible hydraulic micro-mortar waterproofing and protection membrane, applied in accordance with the manufacturers instruction
A81: =A75+1 -> 11 | C81: On shower walls | D81: m² | E81: 10
C83: Ditto 0 - 10 | D83: m² | E83: 1
A85: =A81+1 -> 12 | C85: On shower floors | D85: m² | E85: 10
C87: Ditto 0 - 10 | D87: m² | E87: 1
C89: Two coats "Duram Aquapel" or similar approved silicone water repellant, applied in accordance with the manufacturers instruction
A91: =A85+1 -> 13 | C91: On face brick walls | D91: m² | E91: 50
C93: Ditto 0 - 50 | D93: m² | E93: 1
A95: =A91+1 -> 14 | C95: On walls with "Marmoran" finish | D95: m² | E95: 50
C97: Ditto 0 - 50 | D97: m² | E97: 1
C99: WATERPROOFING BASEMENTS, ROOFS, BALCONIES, ETC.
C101: 4mm Thick "Derbigum SP4" or similar approved waterproofing membrane including laps, turn-ups, turn-downs, etc and preparing and priming concrete or screeded surfaces laid in accordance with the manufacturers instruction
A103: =A95+1 -> 15 | C103: On flat floors. | D103: m² | E103: 50
C105: Ditto 0 - 100 | D105: m² | E105: 1
A107: =A103+1 -> 16 | C107: On flat roofs | D107: m² | E107: 50
C109: Ditto 0 - 100 | D109: m² | E109: 1
A111: =A107+1 -> 17 | C111: On balcony floors | D111: m² | E111: 20
C113: Ditto 0 - 25 | D113: m² | E113: 1
A115: =A111+1 -> 18 | C115: On sloping floors. | D115: m² | E115: 50
C117: Ditto 0 - 100 | D117: m² | E117: 1
A119: =A115+1 -> 19 | C119: On sloping roofs | D119: m² | E119: 50
C121: Ditto 0 - 100 | D121: m² | E121: 1
A123: =A119+1 -> 20 | C123: On walls | D123: m² | E123: 20
C125: Ditto 0 - 25 | D125: m² | E125: 1
A127: =A123+1 -> 21 | C127: On turn-ups and turn-downs exceeding 300mm girth | D127: m² | E127: 20
C129: Ditto 0 - 25 | D129: m² | E129: 1
A131: =A127+1 -> 22 | C131: On tops and sides of inverted beams | D131: m² | E131: 20
C133: Ditto 0 - 25 | D133: m² | E133: 1
A135: =A131+1 -> 23 | C135: On bottoms and sides of floor ducts, channels, etc | D135: m² | E135: 20
C137: Ditto 0 - 25 | D137: m² | E137: 1
A140: =A135+1 -> 24 | C140: On bottoms and sides of box gutters | D140: m² | E140: 20
C142: Ditto 0 - 25 | D142: m² | E142: 1
A144: =A140+1 -> 25 | C144: On bottoms and sides of plant boxes | D144: m² | E144: 20
C146: Ditto 0 - 25 | D146: m² | E146: 1
A148: =A144+1 -> 26 | C148: On internal surfaces of 300 x 300 x 300mm deep sump, catchpit, etc | D148: No | E148: 2
A150: =A148+1 -> 27 | C150: Sealing edges to brickwork or concrete | D150: m | E150: 20
A152: =A150+1 -> 28 | C152: Sealing edges to brickwork or concrete including trowelled mastic bead | D152: m | E152: 20
A154: =A152+1 -> 29 | C154: Additional membrane 300mm girth at internal and external angles | D154: m | E154: 20
A156: =A154+1 -> 30 | C156: Additional membrane 300mm girth at internal and external angles, circular on plan including forming darts as necessary | D156: m | E156: 20
A158: =A156+1 -> 31 | C158: Bandage cover flashing strips 300mm girth at turn-ups, including sealing top edge with mastic in and including groove in brickwork | D158: m | E158: 20
A160: =A158+1 -> 32 | C160: Dressing and sealing into 100mm internal diameter outlet, including additional membrane | D160: No | E160: 2
A162: =A160+1 -> 33 | C162: Dressing and sealing around pipe not exceeding 100mm external diameter, including additional membrane, gussets, collars, etc | D162: No | E162: 2
C164: 5mm Thick "Derbigum SP5" or similar approved waterproofing membrane including laps, turn-ups, turn-downs, etc and preparing and priming concrete or screeded surfaces laid in accordance with the manufacturers instruction
A166: =A162+1 -> 34 | C166: On flat floors. | D166: m² | E166: 50
C168: Ditto 0 - 100 | D168: m² | E168: 1
A170: =A166+1 -> 35 | C170: On flat roofs | D170: m² | E170: 50
C172: Ditto 101 - above | D172: m² | E172: 1
A174: =A170+1 -> 36 | C174: On sloping floors. | D174: m² | E174: 50
C176: Ditto 0 - 100 | D176: m² | E176: 1
A178: =A174+1 -> 37 | C178: On sloping roofs | D178: m² | E178: 50
C180: Ditto 0 - 100 | D180: m² | E180: 1
A182: =A178+1 -> 38 | C182: On turn-ups and turn-downs exceeding 300mm girth | D182: m² | E182: 20
C184: Ditto 0 - 25 | D184: m² | E184: 1
A186: =A182+1 -> 39 | C186: Sealing edges to brickwork or concrete | D186: m | E186: 20
A188: =A186+1 -> 40 | C188: Sealing edges to brickwork or concrete including trowelled mastic bead | D188: m | E188: 20
A190: =A188+1 -> 41 | C190: Dressing and sealing into 100mm internal diameter outlet, including additional membrane | D190: No | E190: 20
A192: =A190+1 -> 42 | C192: Dressing and sealing around pipe not exceeding 100mm external diameter, including additional membrane, gussets, collars, etc | D192: No | E192: 20
C194: 4mm Thick "Derbigum SP4" or similar approved waterproofing membrane including laps, turn-ups, turn-downs, etc and preparing and fixing 2mm thick "Derbigum CG2" interdek underlay on timber surfaces laid in accordance with the manufacturers instruction
A196: =A192+1 -> 43 | C196: On flat floors. | D196: m² | E196: 50
C198: Ditto 0 - 100 | D198: m² | E198: 1
A200: =A196+1 -> 44 | C200: On flat roofs | D200: m² | E200: 50
C202: Ditto 0 - 100 | D202: m² | E202: 1
A204: =A200+1 -> 45 | C204: On sloping floors. | D204: m² | E204: 50
C206: Ditto 0 - 100 | D206: m² | E206: 1
A208: =A204+1 -> 46 | C208: On sloping roofs | D208: m² | E208: 30
C210: Ditto 0 - 100 | D210: m² | E210: 1
A212: =A208+1 -> 47 | C212: On turn-ups and turn-downs exceeding 300mm girth | D212: m² | E212: 20
C214: Ditto 0 - 25 | D214: m² | E214: 1
A216: =A212+1 -> 48 | C216: Sealing edges to brickwork or concrete | D216: m | E216: 20
A218: =A216+1 -> 49 | C218: Sealing edges to brickwork or concrete including trowelled mastic bead | D218: m | E218: 20
A220: =A218+1 -> 50 | C220: Dressing and sealing into 100mm internal diameter outlet, including additional membrane | D220: No | E220: 2
A222: =A220+1 -> 51 | C222: Dressing and sealing around pipe not exceeding 100mm external diameter, including additional membrane, gussets, collars, etc | D222: No | E222: 2
A224: =A222+1 -> 52 | C224: 50 x 50mm Triangular fillets | D224: m | E224: 20
C226: 4mm Thick "Derbigum SP4" or similar approved waterproofing membrane including laps, turn-ups, turn-downs, etc and preparing and fixing 3mm thick "Derbigum CG3" interdek underlay on timber surfaces laid in accordance with the manufacturers instruction
A228: =A224+1 -> 53 | C228: On flat floors. | D228: m² | E228: 50
C230: Ditto 0 - 100 | D230: m² | E230: 1
A232: =A228+1 -> 54 | C232: On flat roofs | D232: m² | E232: 50
C234: Ditto 0 - 100 | D234: m² | E234: 1
A236: =A232+1 -> 55 | C236: On sloping floors. | D236: m² | E236: 50
C238: Ditto 0 - 100 | D238: m² | E238: 1
A240: =A236+1 -> 56 | C240: On sloping roofs | D240: m² | E240: 50
C242: Ditto 0 - 100 | D242: m² | E242: 1
A244: =A240+1 -> 57 | C244: On turn-ups and turn-downs exceeding 300mm girth | D244: m² | E244: 20
C246: Ditto 0 - 100 | D246: m² | E246: 1
A248: =A244+1 -> 58 | C248: Sealing edges to brickwork or concrete | D248: m | E248: 20
A250: =A248+1 -> 59 | C250: Sealing edges to brickwork or concrete including trowelled mastic bead | D250: m | E250: 20
A252: =A250+1 -> 60 | C252: Dressing and sealing into 100mm internal diameter outlet, including additional membrane | D252: No | E252: 2
A254: =A252+1 -> 61 | C254: Dressing and sealing around pipe not exceeding 100mm external diameter, including additional membrane, gussets, collars, etc | D254: No | E254: 2
A256: =A254+1 -> 62 | C256: 50 x 50mm Triangular fillets | D256: m | E256: 20
C258: Bituthene 3000 or similar approved high performance waterproofing membrane for sub-structure and flat deck application laid in accordance with the manufacturers instruction
A260: =A256+1 -> 63 | C260: On parapet walls, treads and risers of stairs, etc. | D260: m² | E260: 50
C262: Ditto 0 - 25 | D262: m² | E262: 1
A264: =A260+1 -> 64 | C264: Extra over for two additional layers at expansion joints | D264: m | E264: 20
A266: =A264+1 -> 65 | C266: Additional membrane 300mm girth at internal and external angles | D266: m | E266: 20
A268: =A266+1 -> 66 | C268: Additional membrane and sealing into 100mm diameter outlet | D268: No | E268: 2
A270: =A268+1 -> 67 | C270: Fibreglass counter flashing 300mm girth | D270: m | E270: 20
A272: =A270+1 -> 68 | C272: 30 x 30mm Triangular fillets | D272: m | E272: 20
A274: =A272+1 -> 69 | C274: Sealing edges to brickwork or concrete | D274: m | E274: 20
C276: Bituthene 5000 or similar approved composite membrane incorporating high performance moisture and water resistant rubberised asphalt with tough, puncture and heat resistant polypropylene reinforcing mesh laid in accordance with the manufacturers instruction
A278: =A274+1 -> 70 | C278: On parking deck | D278: m² | E278: 50
C280: Ditto 0 - 100 | D280: m² | E280: 1
A282: =A278+1 -> 71 | C282: Extra over for two additional layers at expansion joints | D282: m | E282: 20
A284: =A282+1 -> 72 | C284: Additional membrane 300mm girth at internal and external angles | D284: m | E284: 20
A286: =A284+1 -> 73 | C286: Additional membrane and sealing into 100mm diameter outlet | D286: No | E286: 2
A288: =A286+1 -> 74 | C288: Fibreglass counter flashing 300mm girth | D288: m | E288: 20
A290: =A288+1 -> 75 | C290: 30 x 30mm Triangular fillets | D290: m | E290: 20
A292: =A290+1 -> 76 | C292: Sealing edges to brickwork or concrete | D292: m | E292: 20
C294: Apply two coats of grey coloured "Aqua-mite" or similar approved waterproof coating in accordance with the manufacturers instruction
A296: =A292+1 -> 77 | C296: On bottoms and sides of fibreglass box gutters | D296: m² | E296: 30
A298: =A296+1 -> 78 | C298: On valley linings | D298: m | E298: 20
C300: Apply base coat with membrane and three coats "Duram Flexikote" or similar approved waterproof membrane in accordance with the manufacturers instruction
A302: =A298+1 -> 79 | C302: On concrete roof tiles in patches | D302: m² | E302: 20
C304: ABEseal or similar approved glassfibre reinforced waterproofing membrane including laps, turn-ups, turn-downs, etc and preparing and priming surfaces
A306: =A302+1 -> 80 | C306: Flashing strip 150mm girth in sealing edge of waterproofing membrane to plastered walls | D306: m | E306: 20
A308: =A306+1 -> 81 | C308: Flashing strip 250mm girth in sealing edge of corrugated iron roof sheeting to plastered walls | D308: m | E308: 20
A310: =A308+1 -> 82 | C310: Flashing strip 250mm girth in sealing end of IBR pattern steel roof sheeting to concrete walls | D310: m | E310: 20
A312: =A310+1 -> 83 | C312: Flashing strip 250mm girth in sealing corrugated iron roof sheeting around cast iron pipe not exceeding 100mm diameter | D312: No | E312: 2
A314: =A312+1 -> 84 | C314: Flashing strip 250mm girth in sealing concrete roofing tiles around PVC pipe not exceeding 110mm diameter | D314: No | E314: 2
C316: 0,6mm Galvanised sheet steel flashings
A318: =A314+1 -> 85 | C318: Cover flashings 150mm girth, including sealing top edge with mastic in and including groove in brickwork | D318: m | E318: 20
C320: Clean crushed stone dressing free of pyrite or other contaminants, of 20 - 25mm stone evenly spread with larger stones around outlets
A322: =A318+1 -> 86 | C322: 50mm Thick on waterproofing to flat roofs | D322: m² | E322: 50
C324: Ditto 0 - 100 | D324: m² | E324: 1
C326: Clean river stone pebble dressing of 20 - 30mm pebbles evenly spread with larger stones around outlets
A328: =A322+1 -> 87 | C328: 50mm Thick on waterproofing to flat roofs | D328: m² | E328: 50
C330: Ditto 0 - 100 | D330: m² | E330: 1
C332: Two coats bituminous aluminium paint
A334: =A328+1 -> 88 | C334: On waterproofing to roofs | D334: m² | E334: 100
C336: Ditto 0 - 100 | D336: m² | E336: 1
A338: =A334+1 -> 89 | C338: On waterproofing to box gutters | D338: m² | E338: 20
C340: Ditto 0 - 25 | D340: m² | E340: 1
C342: Two coats heavy duty acrylic emulsion paint
A344: =A338+1 -> 90 | C344: On waterproofing to roofs | D344: m² | E344: 200
C346: Ditto 0 - 100 | D346: m² | E346: 1
A348: =A344+1 -> 91 | C348: On waterproofing to box gutters | D348: m² | E348: 20
C350: Ditto 0 - 25 | D350: m² | E350: 1
C352: WATERSTOPS, SEALING STRIPS, JOINT SEALANTS, ETC
C354: Pre-compressed bitumen impregnated foam plastic joint sealing strips
A356: =A348+1 -> 92 | C356: 10 x 30mm In joints between frames and walls | D356: m | E356: 20
A358: =A356+1 -> 93 | C358: 10 x 40mm In expansion joints | D358: m | E358: 20
C360: Approved silicone sealing compound applied with a pressure caulking gun
A362: =A358+1 -> 94 | C362: Between timber door or window frames and plaster | D362: m | E362: 50
A364: =A362+1 -> 95 | C364: Between timber door or window frames and face brickwork | D364: m | E364: 50
A366: =A364+1 -> 96 | C366: Between metal door or window frames and plaster | D366: m | E366: 50
A368: =A366+1 -> 97 | C368: Between metal door or window frames and face brickwork | D368: m | E368: 50
A370: =A368+1 -> 98 | C370: Between aluminium door or window frames and plaster | D370: m | E370: 50
A372: =A370+1 -> 99 | C372: Between aluminium door or window frames and face brickwork | D372: m | E372: 50
A374: =A372+1 -> 100 | C374: Between joinery fittings and plaster | D374: m | E374: 50
A376: =A374+1 -> 101 | C376: Between joinery fittings and face brickwork | D376: m | E376: 50
A378: =A376+1 -> 102 | C378: Between ceramic sanitary fittings and plaster | D378: m | E378: 50
A380: =A378+1 -> 103 | C380: Between ceramic sanitary fittings and tiling | D380: m | E380: 50
A382: =A380+1 -> 104 | C382: Between stainless steel ceramic sanitary fittings and plaster | D382: m | E382: 20
A384: =A382+1 -> 105 | C384: Between stainless steel ceramic sanitary fittings and tiling | D384: m | E384: 20
A386: =A384+1 -> 106 | C386: Between acrylic sanitary fittings and plaster | D386: m | E386: 20
A388: =A386+1 -> 107 | C388: Between acrylic sanitary fittings and tiling | D388: m | E388: 20
C390: Approved acrylic sealing compound applied with a pressure caulking gun
A392: =A388+1 -> 108 | C392: Between timber door or window frames and plaster | D392: m | E392: 50
A394: =A392+1 -> 109 | C394: Between timber door or window frames and face brickwork | D394: m | E394: 50
A396: =A394+1 -> 110 | C396: Between metal door or window frames and plaster | D396: m | E396: 50
A398: =A396+1 -> 111 | C398: Between metal door or window frames and face brickwork | D398: m | E398: 50
A400: =A398+1 -> 112 | C400: Between aluminium door or window frames and plaster | D400: m | E400: 50
... 34 more rows
